fUSD/lending_fUSD_20251026
["ID","MTS","AMOUNT","RATE_DAILY","PERIOD"]
[392425435,1761463841527,-3385.6965788,0.00035955,2]
[392425436,1761463841537,-1000.0,0.0003597,2]
[392425437,1761463841546,-193.8508088,0.00035989,15]
[392425438,1761463841555,-500.0,0.00035989,9]
[392425439,1761463841565,-500.0,0.00035989,9]
[392425440,1761463841574,-500.0,0.00035989,9]
[392425441,1761463841584,-500.0,0.00035989,9]
[392425442,1761463841593,-500.0,0.00035989,9]
[392425443,1761463841603,-500.0,0.00035989,9]
[392425444,1761463841613,-544.70127636,0.00035989,9]
[392425445,1761463841622,-500.0,0.00035989,9]
[392425446,1761463841632,-500.0,0.00035989,7]
[392425447,1761463841645,-500.0,0.00035989,9]
[392425448,1761463841654,-500.0,0.00035989,9]
[392425449,1761463841663,-500.0,0.00035989,9]
[392425450,1761463841672,-500.0,0.00035989,9]
[392425451,1761463841683,-314.08721373,0.00035989,9]
[392425452,1761463841692,-500.0,0.00035989,9]
[392425453,1761463841702,-500.0,0.00035989,9]
[392425454,1761463841711,-500.0,0.00035989,7]
[392425455,1761463841720,-500.0,0.00035989,9]
[392425456,1761463841730,-500.0,0.00035989,9]
[392425457,1761463841740,-500.0,0.00035989,9]
[392425458,1761463841749,-500.0,0.00035989,9]
[392425459,1761463841759,-500.0,0.00035989,9]
[392425460,1761463841768,-500.0,0.00035989,9]
[392425461,1761463841777,-500.0,0.00035989,9]
[392425462,1761463841787,-500.0,0.00035989,9]
[392425463,1761463841796,-500.0,0.00035989,9]
[392425464,1761463841806,-500.0,0.00035989,9]
[392425465,1761463841816,-500.0,0.00035989,9]
[392425466,1761463841825,-500.0,0.00035989,9]
[392425467,1761463841835,-500.0,0.00035989,9]
[392425468,1761463841844,-500.0,0.00035989,9]
[392425469,1761463841854,-500.0,0.00035989,9]
[392425470,1761463841864,-500.0,0.00035989,9]
[392425471,1761463841873,-500.0,0.00035989,9]
[392425472,1761463841883,-380.0,0.00035989,9]
[392425473,1761463841892,-500.0,0.00035989,9]
[392425474,1761463841902,-500.0,0.00035989,9]
[392425475,1761463841911,-500.0,0.00035989,9]
[392425476,1761463841921,-500.0,0.00035989,9]
[392425477,1761463841930,-500.0,0.00035989,9]
[392425478,1761463841939,-500.0,0.00035989,9]
[392425479,1761463841951,-500.0,0.00035989,9]
[392425480,1761463841960,-500.0,0.00035989,9]
[392425481,1761463841971,-500.0,0.00035989,9]
[392425482,1761463841980,-500.0,0.00035989,9]
[392425483,1761463841990,-500.0,0.00035989,9]
[392425484,1761463841999,-500.0,0.00035989,9]
[392425485,1761463842009,-500.0,0.00035989,9]
[392425486,1761463842019,-500.0,0.00035989,9]
[392425487,1761463842029,-500.0,0.00035989,9]
[392425488,1761463842038,-500.0,0.00035989,9]
[392425489,1761463842048,-500.0,0.00035989,9]
[392425490,1761463842057,-500.0,0.00035989,9]
[392425491,1761463842067,-232.32231663,0.00035989,9]
[392425492,1761463842076,-500.0,0.00035989,9]
[392425493,1761463842086,-436.1705965,0.00035989,9]
[392425494,1761463842095,-500.0,0.00035989,9]
[392425495,1761463842104,-500.0,0.00035989,9]
[392425496,1761463842114,-295.75228844,0.00035989,2]
[392425497,1761463842125,-859.44,0.00035989,14]
[392425498,1761463842135,-500.0,0.00035989,9]
[392425499,1761463842144,-500.0,0.00035989,2]
[392425500,1761463842153,-500.0,0.00035989,9]
[392425501,1761463842163,-500.0,0.00035989,9]
[392425502,1761463842173,-500.0,0.00035989,9]
[392425503,1761463842184,-500.0,0.00035989,9]
[392425504,1761463842196,-500.0,0.00035989,9]
[392425505,1761463842206,-500.0,0.00035989,9]
[392425506,1761463842215,-500.0,0.00035989,9]
[392425507,1761463842227,-500.0,0.00035989,2]
[392425508,1761463842236,-500.0,0.00035989,9]
[392425509,1761463842245,-500.0,0.00035989,9]
[392425510,1761463842255,-500.0,0.00035989,9]
[392425511,1761463842264,-500.0,0.00035989,9]
[392425512,1761463842273,-500.0,0.00035989,9]
[392425513,1761463842281,-500.0,0.00035989,9]
[392425514,1761463842290,-500.0,0.00035989,9]
[392425515,1761463842299,-500.0,0.00035989,9]
[392425516,1761463842308,-500.0,0.00035989,9]
[392425517,1761463842318,-500.0,0.00035989,9]
[392425518,1761463842327,-513.6398895,0.00035989,9]
[392425519,1761463842336,-500.0,0.00035989,9]
[392425520,1761463842346,-500.0,0.00035989,9]
[392425521,1761463842355,-500.0,0.00035989,9]
[392425522,1761463842364,-500.0,0.00035989,9]
[392425523,1761463842374,-586.15581238,0.00035989,9]
[392425524,1761463842383,-500.0,0.00035989,9]
[392425525,1761463842392,-500.0,0.00035989,9]
[392425526,1761463842401,-500.0,0.00035989,9]
[392425527,1761463842414,-500.0,0.00035989,9]
[392425528,1761463842427,-587.66425738,0.00035989,9]
[392425529,1761463842435,-500.0,0.00035989,9]
[392425530,1761463842445,-500.0,0.00035989,9]
[392425531,1761463842455,-500.0,0.00035989,9]
[392425532,1761463842464,-500.0,0.00035989,9]
[392425533,1761463842473,-500.0,0.00035989,9]
[392425534,1761463842482,-500.0,0.00035989,9]
[392425535,1761463842492,-500.0,0.00035989,9]
[392425536,1761463842502,-500.0,0.00035989,9]
[392425537,1761463842511,-500.0,0.00035989,9]
[392425538,1761463842520,-500.0,0.00035989,9]
[392425539,1761463842531,-500.0,0.00035989,2]
[392425540,1761463842540,-500.0,0.00035989,9]
[392425541,1761463842550,-500.0,0.00035989,9]
[392425542,1761463842559,-500.0,0.00035989,9]
[392425543,1761463842568,-500.0,0.00035989,9]
[392425544,1761463842578,-500.0,0.00035989,9]
[392425545,1761463842588,-500.0,0.00035989,9]
[392425546,1761463842598,-500.0,0.00035989,9]
[392425547,1761463842607,-500.0,0.00035989,9]
[392425548,1761463842616,-500.0,0.00035989,9]
[392425549,1761463842626,-500.0,0.00035989,9]
[392425550,1761463842636,-500.0,0.00035989,9]
[392425551,1761463842646,-500.0,0.00035989,9]
[392425552,1761463842655,-500.0,0.00035989,9]
[392425553,1761463842664,-500.0,0.00035989,9]
[392425554,1761463842674,-500.0,0.00035989,9]
[392425555,1761463842684,-500.0,0.00035989,9]
[392425556,1761463842694,-500.0,0.00035989,9]
[392425557,1761463842703,-500.0,0.00035989,9]
[392425558,1761463842713,-500.0,0.00035989,9]
[392425559,1761463842723,-500.0,0.00035989,9]
[392425560,1761463842733,-450.62169882,0.00035989,9]
[392425561,1761463842743,-556.33278869,0.00035989,9]
[392425562,1761463842752,-500.0,0.00035989,9]
[392425563,1761463842762,-500.0,0.00035989,9]
[392425564,1761463842772,-500.0,0.00035989,9]
[392425565,1761463842782,-500.0,0.00035989,9]
[392425566,1761463842791,-300.0,0.00035989,9]
[392425567,1761463842802,-500.0,0.00035989,9]
[392425568,1761463842811,-500.0,0.00035989,9]
[392425569,1761463842821,-500.0,0.00035989,9]
[392425570,1761463842832,-500.0,0.00035989,9]
[392425571,1761463842842,-500.0,0.00035989,9]
[392425572,1761463842852,-500.0,0.00035989,9]
[392425573,1761463842861,-500.0,0.00035989,9]
[392425574,1761463842871,-500.0,0.00035989,9]
[392425575,1761463842880,-500.0,0.00035989,9]
[392425576,1761463842890,-500.0,0.00035989,9]
[392425577,1761463842899,-500.0,0.00035989,9]
[392425578,1761463842908,-500.0,0.00035989,9]
[392425579,1761463842918,-500.0,0.00035989,9]
[392425580,1761463842928,-500.0,0.00035989,9]
[392425581,1761463842937,-500.0,0.00035989,9]
[392425582,1761463842947,-500.0,0.00035989,9]
[392425583,1761463842957,-500.0,0.00035989,9]
[392425584,1761463842967,-500.0,0.00035989,9]
[392425585,1761463842976,-500.0,0.00035989,9]
[392425586,1761463842987,-500.0,0.00035989,9]
[392425587,1761463843000,-500.0,0.00035989,9]
[392425588,1761463843010,-500.0,0.00035989,9]
[392425589,1761463843020,-500.0,0.00035989,9]
[392425590,1761463843030,-500.0,0.00035989,9]
[392425591,1761463843040,-777.77,0.00035989,9]
[392425592,1761463843050,-500.0,0.00035989,9]
[392425593,1761463843060,-500.0,0.00035989,9]
[392425594,1761463843070,-500.0,0.00035989,9]
[392425595,1761463843080,-787.61,0.00035989,2]
[392425596,1761463843090,-276.75866433,0.00035989,9]
[392425597,1761463843099,-500.0,0.00035989,9]
[392425599,1761463843109,-500.0,0.00035989,9]
[392425601,1761463843119,-500.0,0.00035989,9]
[392425603,1761463843128,-500.0,0.00035989,9]
[392425605,1761463843137,-500.0,0.00035989,9]
[392425607,1761463843147,-500.0,0.00035989,9]
[392425608,1761463843156,-500.0,0.00035989,9]
[392425609,1761463843166,-500.0,0.00035989,9]
[392425610,1761463843176,-500.0,0.00035989,9]
[392425611,1761463843193,-500.0,0.00035989,9]
[392425612,1761463843202,-500.0,0.00035989,9]
[392425613,1761463843211,-325.24388322,0.00035989,9]
[392425614,1761463843221,-500.0,0.00035989,2]
[392425615,1761463843231,-303.29647545,0.00035989,9]
[392425616,1761463843241,-568.48260373,0.00035989,9]
[392425617,1761463843250,-500.0,0.00035989,9]
[392425618,1761463843259,-500.0,0.00035989,9]
[392425619,1761463843272,-500.0,0.00035989,9]
[392425620,1761463843282,-500.0,0.00035989,9]
[392425621,1761463843291,-264.2755163,0.00035989,9]
[392425622,1761463843300,-500.0,0.00035989,9]
[392425623,1761463843310,-500.0,0.00035989,9]
[392425624,1761463843319,-500.0,0.00035989,9]
[392425625,1761463843328,-500.0,0.00035989,9]
[392425626,1761463843337,-500.0,0.00035989,9]
[392425627,1761463843346,-500.0,0.00035989,9]
[392425628,1761463843355,-500.0,0.00035989,9]
[392425629,1761463843364,-500.0,0.00035989,9]
[392425630,1761463843374,-538.75951064,0.00035989,9]
[392425631,1761463843383,-500.0,0.00035989,9]
[392425632,1761463843392,-500.0,0.00035989,9]
[392425634,1761463843401,-582.09,0.00035989,9]
[392425635,1761463843410,-500.0,0.00035989,9]
[392425636,1761463843421,-500.0,0.00035989,9]
[392425637,1761463843430,-500.0,0.00035989,9]
[392425638,1761463843440,-213.24860999,0.00035989,9]
[392425639,1761463843449,-615.24516226,0.00035989,9]
[392425640,1761463843624,-500.0,0.00035989,9]
[392425641,1761463843634,-187.00437377,0.00035989,9]
[392425642,1761463843643,-500.0,0.00035989,9]
[392425643,1761463843653,-504.73647707,0.00035989,9]
[392425644,1761463843662,-500.0,0.00035989,9]
[392425645,1761463843671,-500.0,0.00035989,9]
[392425646,1761463843680,-500.0,0.00035989,9]
[392425647,1761463843690,-500.0,0.00035989,9]
[392425648,1761463843699,-500.0,0.00035989,9]
[392425649,1761463843708,-231.60827316,0.00035989,9]
[392425650,1761463843717,-500.0,0.00035989,9]
[392425651,1761463843726,-500.0,0.00035989,9]
[392425652,1761463843736,-500.0,0.00035989,9]
[392425653,1761463843746,-500.0,0.00035989,9]
[392425654,1761463843755,-500.0,0.00035989,9]
[392425655,1761463843764,-500.0,0.00035989,9]
[392425656,1761463843773,-500.0,0.00035989,9]
[392425657,1761463843783,-500.0,0.00035989,9]
[392425658,1761463843792,-222.92812529,0.00035989,9]
[392425659,1761463843803,-500.0,0.00035989,9]
[392425660,1761463843812,-500.0,0.00035989,9]
[392425661,1761463843821,-500.0,0.00035989,9]
[392425662,1761463843831,-278.44703,0.00035989,2]
[392425663,1761463843840,-223.45382435,0.00035989,2]
[392425664,1761463843849,-500.0,0.00035989,9]
[392425665,1761463843859,-500.0,0.00035989,9]
[392425666,1761463843868,-520.568596,0.0003599,60]
[392425667,1761463843877,-235400.630027,0.0003599,3]
[392425668,1761463843887,-157138.64658,0.0003599,3]
[392425669,1761463843900,-151.0,0.0003599,30]
[392425670,1761463843909,-500.0,0.00035999,7]
[392425671,1761463843919,-500.0,0.00035999,7]
[392425672,1761463843928,-500.0,0.00035999,9]
[392425673,1761463843938,-500.0,0.00035999,9]
[392425674,1761463843947,-89151.78634422,0.00036,32]
[392425675,1761463843956,-40443.96558676,0.00036,2]
[392425676,1761463844092,-32996.34490429,0.00036,2]
[392425677,1761463844104,-14733.82787378,0.00036,2]
[392425678,1761463844115,-3470.66029366,0.00036,2]
[392425679,1761463844125,-3670.10718,0.00036,2]
[392425680,1761463844137,-1747.04479953,0.00036,2]
[392425681,1761463844147,-262.589,0.00036,2]
[392425682,1761463844196,-490.0,0.00035989,9]
[392425683,1761463846442,-126.88796595,0.00035989,9]
[392425684,1761463846451,-150.58162143,0.0003599,30]
[392425685,1761463846932,-151.0,0.00034372,2]
[392425687,1761463846942,-151.16,0.00034372,2]
[392425689,1761463846951,-0.41837857,0.0003599,30]
[392425691,1761463846962,-3920.35015743,0.00036,2]
[392425708,1761463953105,191.0,0.00031506,120]
[392425709,1761464009135,195.99,0.00017296,2]
[392425710,1761464009322,195.99,0.00018206,2]
[392425711,1761464009542,195.99,0.00019116,2]
[392425712,1761464009724,195.99,0.00020027,2]
[392425713,1761464009930,195.99,0.00020937,2]
[392425714,1761464010147,195.99,0.00021847,2]
[392425715,1761464010354,195.99,0.00022758,2]
[392425720,1761464241609,-1500.0,0.00023667,2]
[392425721,1761464241636,-195.99,0.00023668,2]
[392425723,1761464507975,-195.99,0.00024578,2]
[392425724,1761464515698,-500.0,0.00024932,2]
[392425734,1761465031621,-195.99,0.00025488,2]
[392425735,1761465031631,-195.99,0.00026399,2]
[392425736,1761465031640,-195.99,0.00027309,2]
[392425737,1761465031649,-91.30449454,0.00028219,2]
[392425738,1761465031674,-104.68550546,0.00028219,2]
[392425739,1761465031684,-195.99,0.0002913,2]
[392425740,1761465031693,-195.99,0.0003004,2]
[392425741,1761465031702,-50.80053668,0.00030739,2]
[392425742,1761465031839,-142.50946332,0.00030739,2]
[392425743,1761465031848,-195.99,0.0003095,2]
[392425744,1761465031857,-1274.12841705,0.00031,2]
[392425745,1761465031869,-1924.74962376,0.00031,2]
[392425746,1761465031878,-159.47867009,0.00031761,2]
[392425747,1761465031887,-195.99,0.00031861,2]
[392425749,1761465031896,-166.66,0.00032262,30]
[392425751,1761465031906,-200.380673,0.00032588,5]
[392425752,1761465031918,-150.818734,0.00032588,5]
[392425755,1761465031928,-195.99,0.00032771,2]
[392425756,1761465031937,-185.89020106,0.00032819,2]
[392425758,1761465031946,-200.380673,0.00032866,2]
[392425760,1761465031957,-2047.26073474,0.00032869,2]
[392425762,1761465031967,-1015.28845412,0.00032918,2]
[392425765,1761465031981,-786.21695819,0.00032918,2]
[392425767,1761465031993,-245.75532243,0.00032918,2]
[392425769,1761465032003,-2047.26073474,0.00032926,2]
[392425771,1761465032013,-152.0,0.00033163,3]
[392425773,1761465032022,-195.99,0.00033681,2]
[392425775,1761465032031,-200.380673,0.00033697,30]
[392425777,1761465032041,-263.35,0.00033822,2]
[392425779,1761465032050,-500.0,0.00033823,2]
[392425782,1761465032059,-200.0,0.00033833,2]
[392425785,1761465032069,-200.380673,0.0003385,2]
[392425788,1761465032078,-150.818734,0.0003385,2]
[392425791,1761465032089,-157.97,0.00033887,120]
[392425793,1761465032098,-1000.0,0.00033957,2]
[392425795,1761465032107,-157.13,0.00034012,2]
[392425797,1761465032115,-263.35,0.00034059,2]
[392425799,1761465032124,-154.194046,0.00034191,5]
[392425801,1761465032133,-200.380673,0.00034191,5]
[392425803,1761465032143,-150.818734,0.00034191,5]
[392425805,1761465032152,-14734.70900119,0.00034296,2]
[392425807,1761465032161,-263.35,0.00034296,2]
[392425809,1761465032170,-304.046,0.00034296,38]
[392425811,1761465032180,-251.0,0.00034351,2]
[392425813,1761465032189,-154.194046,0.00034498,30]
[392425815,1761465032197,-200.380673,0.00034498,30]
[392425817,1761465032206,-150.818734,0.00034498,30]
[392425819,1761465032215,-550.81667319,0.00034508,7]
[392425821,1761465032224,-2053.0,0.00034509,2]
[392425823,1761465032233,-3415.0,0.00034509,2]
[392425825,1761465032242,-572.0,0.00034509,2]
[392425827,1761465032251,-200.0,0.00034509,2]
[392425829,1761465032259,-208.0,0.00034509,2]
[392425831,1761465032268,-150.0,0.00034509,2]
[392425833,1761465032277,-3487.0,0.00034509,2]
[392425835,1761465032286,-203.668,0.00034509,2]
[392425837,1761465032295,-250.0,0.00034509,2]
[392425839,1761465032304,-213.22,0.00034509,2]
[392425841,1761465032312,-3116.892,0.00034509,2]
[392425843,1761465032321,-151.371,0.00034509,2]
[392425845,1761465032330,-168.0,0.00034517,7]
[392425847,1761465032339,-263.35,0.00034532,2]
[392425849,1761465032348,-195.99,0.00034591,2]
[392425851,1761465032357,-168.0,0.00034672,7]
[392425853,1761465032369,-251.0,0.00034691,2]
[392425855,1761465032379,-152.0,0.00034692,4]
[392425857,1761465032388,-168.0,0.00034733,2]
[392425859,1761465032397,-263.35,0.00034769,2]
[392425861,1761465032406,-154.194046,0.00034833,2]
[392425863,1761465032415,-200.380673,0.00034833,2]
[392425865,1761465032424,-150.818734,0.00034833,2]
[392425867,1761465032432,-500.0,0.00034923,7]
[392425869,1761465032441,-500.0,0.00034923,7]
[392425871,1761465032450,-685.95274215,0.00035,30]
[392425873,1761465032459,-13290.36120036,0.00035,10]
[392425875,1761465032469,-263.35,0.00035006,2]
[392425877,1761465032478,-251.0,0.00035037,2]
[392425879,1761465032487,-999.0,0.00035067,3]
[392425881,1761465032496,-150.0,0.00035121,2]
[392425883,1761465032505,-263.35,0.00035243,2]
[392425885,1761465032515,-547.13308798,0.00035269,20]
[392425887,1761465032524,-154.194046,0.00035298,30]
[392425889,1761465032533,-200.380673,0.00035298,30]
[392425891,1761465032542,-150.818734,0.00035298,30]
[392425893,1761465032551,-168.0,0.0003536,2]
[392425895,1761465032560,-168.0,0.00035436,7]
[392425897,1761465032569,-251.0,0.00035456,7]
[392425899,1761465032579,-1414.27784157,0.00035469,2]
[392425901,1761465032587,-263.35,0.00035479,2]
[392425903,1761465032596,-251.0,0.00035552,7]
[392425905,1761465032605,-168.0,0.00035603,2]
[392425907,1761465032615,-209.75454563,0.00035616,2]
[392425909,1761465032624,-166.66,0.00035658,30]
[392425911,1761465032633,-168.0,0.00035698,2]
[392425913,1761465032642,-681.95798513,0.00035698,2]
[392425915,1761465032651,-263.35,0.00035716,2]
[392425917,1761465032661,-251.0,0.00035769,2]
[392425919,1761465032670,-154.194046,0.00035794,5]
[392425921,1761465032679,-200.380673,0.00035794,5]
[392425923,1761465032690,-150.818734,0.00035794,5]
[392425925,1761465032699,-664.6480228,0.000358,2]
[392425927,1761465032708,-154.194046,0.00035817,2]
[392425929,1761465032717,-200.380673,0.00035817,2]
[392425931,1761465032726,-150.818734,0.00035817,2]
[392425933,1761465032735,-1809.57371917,0.0003589,2]
[392425935,1761465032744,-490.65383083,0.0003589,2]
[392425937,1761465032753,-664.64802279,0.0003589,2]
[392425939,1761465032763,-154.79067596,0.000359,2]
[392425941,1761465032772,-564.29521402,0.000359,2]
[392425943,1761465032782,-200.0,0.000359,13]
[392425945,1761465032791,-1460.88286204,0.000359,8]
[392425948,1761465032802,-924.0149268,0.00035945,2]
[392425949,1761465032811,-300.0,0.00035945,5]
[392425951,1761465032823,-168.0,0.00035946,2]
[392425953,1761465032832,-150.0,0.00035952,15]
[392425956,1761465032841,-500.0,0.00035952,15]
[392425957,1761465032850,-500.0,0.00035952,15]
[392425960,1761465032860,-150.0,0.00035952,15]
[392425962,1761465032869,-500.0,0.00035952,15]
[392425964,1761465032878,-150.0,0.00035952,15]
[392425966,1761465032888,-150.0,0.00035952,15]
[392425968,1761465032898,-500.0,0.00035952,15]
[392425970,1761465032909,-150.0,0.00035952,15]
[392425972,1761465032922,-150.0,0.00035952,15]
[392425974,1761465032933,-150.0,0.00035952,15]
[392425976,1761465032945,-500.0,0.00035952,15]
[392425978,1761465032958,-150.0,0.00035952,15]
[392425980,1761465032970,-263.35,0.00035953,2]
[392425981,1761465032981,-1809.57371916,0.00035954,2]
[392425982,1761465032991,-490.65383081,0.00035954,2]
[392425983,1761465033001,-1176.19452,0.00035958,2]
[392425984,1761465033012,-537.23979864,0.0003597,2]
[392425985,1761465033023,-500.0,0.00035973,2]
[392425986,1761465033035,-368.76858415,0.00035989,2]
[392425987,1761465033046,-500.0,0.00035989,9]
[392425988,1761465033057,-172.39669895,0.00035989,9]
[392425989,1761465033069,-507.74208629,0.00035989,9]
[392425990,1761465033079,-923.9,0.00035989,14]
[392425991,1761465033090,-500.0,0.00035989,9]
[392425992,1761465033101,-596.81420364,0.00035989,2]
[392425993,1761465033111,-500.0,0.00035989,9]
[392425994,1761465033123,-500.0,0.00035989,9]
[392425995,1761465033134,-500.0,0.00035989,9]
[392425996,1761465033145,-554.91,0.00035989,9]
[392425997,1761465033156,-500.0,0.00035989,9]
[392425998,1761465033167,-500.0,0.00035989,9]
[392425999,1761465033178,-500.0,0.00035989,9]
[392426000,1761465033188,-500.0,0.00035989,9]
[392426001,1761465033198,-500.0,0.00035989,9]
[392426002,1761465033208,-223.45382435,0.00035989,2]
[392426003,1761465033218,-500.0,0.00035989,9]
[392426004,1761465033227,-500.0,0.00035989,9]
[392426005,1761465033239,-500.0,0.00035989,9]
[392426006,1761465033251,-500.0,0.00035989,9]
[392426007,1761465033262,-500.0,0.00035989,9]
[392426008,1761465033272,-500.0,0.00035989,9]
[392426009,1761465033282,-500.0,0.00035989,9]
[392426010,1761465033293,-500.0,0.00035989,9]
[392426011,1761465033303,-500.0,0.00035989,9]
[392426012,1761465033314,-500.0,0.00035989,9]
[392426013,1761465033324,-187.78889731,0.00035989,9]
[392426014,1761465033335,-589.3252297,0.00035989,9]
[392426015,1761465033346,-486.04759831,0.00035989,9]
[392426016,1761465033356,-500.0,0.00035989,9]
[392426017,1761465033367,-500.0,0.00035989,9]
[392426018,1761465033379,-500.0,0.00035989,9]
[392426019,1761465033390,-500.0,0.00035989,9]
[392426020,1761465033400,-500.0,0.00035989,9]
[392426021,1761465033411,-500.0,0.00035989,9]
[392426022,1761465033422,-500.0,0.00035989,9]
[392426023,1761465033434,-500.0,0.00035989,9]
[392426024,1761465033444,-503.19496529,0.00035989,9]
[392426025,1761465033456,-412.75779779,0.00035989,9]
[392426026,1761465033466,-564.12,0.00035989,9]
[392426027,1761465033477,-505.33952746,0.00035989,9]
[392426028,1761465033487,-504.15928085,0.00035989,9]
[392426029,1761465033499,-500.0,0.00035989,9]
[392426030,1761465033510,-516.50607561,0.00035989,9]
[392426031,1761465033520,-500.0,0.00035989,9]
[392426032,1761465033531,-500.0,0.00035989,9]
[392426033,1761465033542,-500.0,0.00035989,9]
[392426034,1761465033553,-500.0,0.00035989,9]
[392426035,1761465033564,-500.0,0.00035989,9]
[392426036,1761465033575,-500.0,0.00035989,9]
[392426037,1761465033588,-500.0,0.00035989,9]
[392426038,1761465033599,-500.0,0.00035989,9]
[392426039,1761465033610,-500.0,0.00035989,9]
[392426040,1761465033621,-500.0,0.00035989,9]
[392426041,1761465033632,-500.0,0.00035989,9]
[392426042,1761465033642,-500.0,0.00035989,9]
[392426043,1761465033654,-198.63828974,0.00035989,15]
[392426044,1761465033665,-179.42734321,0.00035989,15]
[392426045,1761465033675,-500.0,0.00035989,9]
[392426046,1761465033685,-500.0,0.00035989,9]
[392426047,1761465033695,-500.0,0.00035989,9]
[392426048,1761465033705,-500.0,0.00035989,9]
[392426049,1761465033715,-187.99874393,0.00035989,9]
[392426050,1761465033726,-500.0,0.00035989,9]
[392426051,1761465033737,-500.0,0.00035989,9]
[392426052,1761465033750,-500.0,0.00035989,9]
[392426053,1761465033761,-500.0,0.00035989,9]
[392426054,1761465033771,-500.0,0.00035989,9]
[392426055,1761465033781,-500.0,0.00035989,9]
[392426056,1761465033790,-500.0,0.00035989,9]
[392426057,1761465033800,-500.0,0.00035989,9]
[392426058,1761465033810,-500.0,0.00035989,9]
[392426059,1761465033819,-745.37,0.00035989,9]
[392426060,1761465033829,-500.0,0.00035989,9]
[392426061,1761465033839,-500.0,0.00035989,9]
[392426062,1761465033853,-500.0,0.00035989,9]
[392426063,1761465033864,-500.0,0.00035989,9]
[392426064,1761465033877,-754.79,0.00035989,2]
[392426065,1761465033890,-500.0,0.00035989,9]
[392426066,1761465033901,-500.0,0.00035989,9]
[392426067,1761465033917,-500.0,0.00035989,9]
[392426068,1761465033927,-325.24388322,0.00035989,9]
[392426069,1761465033938,-303.29647545,0.00035989,9]
[392426070,1761465033951,-500.0,0.00035989,9]
[392426071,1761465033962,-500.0,0.00035989,9]
[392426072,1761465033972,-500.0,0.00035989,9]
[392426073,1761465033984,-500.0,0.00035989,9]
[392426074,1761465033994,-500.0,0.00035989,9]
[392426075,1761465034004,-500.0,0.00035989,9]
[392426076,1761465034015,-264.2755163,0.00035989,9]
[392426077,1761465034026,-500.0,0.00035989,9]
[392426078,1761465034036,-500.0,0.00035989,9]
[392426079,1761465034047,-500.0,0.00035989,9]
[392426080,1761465034057,-582.09,0.00035989,9]
[392426081,1761465034069,-500.0,0.00035989,9]
[392426082,1761465034080,-500.0,0.00035989,9]
[392426083,1761465034091,-500.0,0.00035989,9]
[392426084,1761465034102,-500.0,0.00035989,9]
[392426085,1761465034112,-500.0,0.00035989,9]
[392426086,1761465034123,-500.0,0.00035989,9]
[392426087,1761465034135,-150.0,0.00035989,15]
[392426088,1761465034145,-500.0,0.00035989,9]
[392426089,1761465034156,-500.0,0.00035989,9]
[392426090,1761465034166,-504.73647707,0.00035989,9]
[392426091,1761465034179,-500.0,0.00035989,9]
[392426092,1761465034189,-500.0,0.00035989,9]